Workbook

Sheet 16
K2: Школа №_______________
K3: __________________________
C4: Меню на 12 сентября 2025г.
A5: № р-ры | B5: Наименование блюда | C5: Выход (гр) | D5: б | E5: ж | F5: у | G5: Ккал | H5: Цена (руб) | I5: № р-ры | J5: Наименование блюда | K5: Выход (гр) | L5: б | M5: ж | N5: у | O5: Ккал | P5: Цена (руб)
A6: Завтрак (7-11 лет) для учащихся первой смены | I6: Завтрак (12 лет и старше) родительская плата
A7: 101/04 | B7: Икра кабачковая | C7: 60 | D7: 1.2 | E7: 5.4 | F7: 5.12 | G7: =(F7*4)+(E7*9)+(D7*4) -> 73.88 | H7: 16 | I7: 101/04 | J7: Икра кабачковая | K7: 60 | L7: 1.2 | M7: 5.4 | N7: 5.12 | O7: =(N7*4)+(M7*9)+(L7*4) -> 73.88 | P7: 16
A8: 439/04 | B8: Печень тушёная в соусе | C8: 100 | D8: 13.82 | E8: 8.97 | F8: 5.22 | G8: 170.29 | H8: 54 | I8: 439/04 | J8: Печень тушёная в соусе | K8: 100 | L8: 13.82 | M8: 8.97 | N8: 5.22 | O8: 170.29 | P8: 54
A9: 520 | B9: Картофельное пюре | C9: 150 | D9: 3.34 | E9: 5.59 | F9: 26.44 | G9: 1583.42 | H9: 27 | I9: 520 | J9: Картофельное пюре | K9: 180 | L9: 4 | M9: 6.66 | N9: 31.73 | O9: 189.5 | P9: 32
A10: 705 | B10: Напиток из шиповника | C10: 200 | D10: 0.8 | E10: 0 | F10: 29.96 | G10: 120 | H10: 14 | I10: 685 | J10: Чай с сахаром | K10: 200 | L10: 0 | M10: 0 | N10: 7 | O10: =(N10*4)+(M10*9)+(L10*4) -> 28 | P10: 3
B11: Хлеб пшеничный | C11: 31 | D11: 2.36 | E11: 0.28 | F11: 15.41 | G11: 70.06 | H11: 2.2 | J11: Хлеб пшеничный | K11: 31 | L11: 2.3 | M11: 0.2 | N11: 15 | O11: =(N11*4)+(M11*9)+(L11*4) -> 71 | P11: 3
J12: Хлеб ржаной | K12: 25 | L12: 1.6 | M12: 1 | N12: 9.6 | O12: 54 | P12: 2
B13: йогурт | C13: 180 | D13: 3 | E13: 3 | F13: 12 | G13: 79
B16: Итого | C16: =SUM(C7:C15) -> 721 | D16: 25 | E16: 23 | F16: 94 | G16: 2097 | H16: 113.20 | J16: Итого | K16: =SUM(K7:K15) -> 596 | L16: 23 | M16: 22 | N16: 74 | O16: 587 | P16: 110
A17: Обед (7-11 лет) для учащихся второй смены | I17: Завтрак (12 лет и старше) бесплатное питание
A18: 101/04 | B18: Икра кабачковая | C18: 60 | D18: 1.2 | E18: 5.4 | F18: 5.12 | G18: =(F18*4)+(E18*9)+(D18*4) -> 73.88 | H18: 16 | I18: 439/04 | J18: Печень тушёная в соусе | K18: 100 | L18: 13.82 | M18: 8.97 | N18: 5.22 | O18: 170.29 | P18: 54
A19: 142 | B19: Суп картофельный с рыбн. консервами | C19: 212.5 | D19: 4.43 | E19: 5.8 | F19: 18.95 | G19: 139.3 | H19: 18 | I19: 520 | J19: Картофельное пюре | K19: 180 | L19: 4 | M19: 6.66 | N19: 31.73 | O19: 189.5 | P19: 32
A20: 439/04 | B20: Печень тушёная в соусе | C20: 100 | D20: 13.82 | E20: 8.97 | F20: 5.22 | G20: 170.29 | H20: 54 | I20: 180 | J20: Чай с сахаром | K20: 200 | L20: 0 | M20: 0 | N20: 7 | O20: =(N20*4)+(M20*9)+(L20*4) -> 28 | P20: 3
A21: 472 | B21: Картофельное пюре | C21: 150 | D21: 3.95 | E21: 6.62 | F21: 31.65 | G21: 188.63 | H21: 27 | J21: Хлеб пшеничный | K21: 31 | L21: 2.3 | M21: 0.2 | N21: 15 | O21: =(N21*4)+(M21*9)+(L21*4) -> 71 | P21: 4
A22: 685 | B22: Чай с сахаром | C22: 200 | D22: 0.2 | E22: 0.05 | F22: 15.04 | G22: =(F22*4)+(E22*9)+(D22*4) -> 61.41 | H22: 3 | J22: Хлеб ржаной | K22: 25 | L22: 1.6 | M22: 1 | N22: 9.6 | O22: 54 | P22: 3
B23: Хлеб пшеничный | C23: 62 | D23: 4.6 | E23: 0.4 | F23: 30 | G23: =(F23*4)+(E23*9)+(D23*4) -> 142 | H23: 2
B24: йогурт | C24: 180 | D24: 2.9 | E24: 2.5 | F24: 11 | G24: =(F24*4)+(E24*9)+(D24*4) -> 78.1
B26: Итого | C26: =SUM(C18:C25) -> 965 | D26: 31 | E26: 30 | F26: 117 | G26: 854 | H26: 120.00 | J26: Итого | K26: =SUM(K18:K25) -> 536 | L26: 22 | M26: 17 | N26: 69 | O26: 513 | P26: 96
B27: Зав. производством ООО "Юнрос"______________________________________
B28: _________________________________________________________________

Sheet 16 овз
C1: Школа №________
C3: _________________________
B4: Меню на 12 сентября 2025г.
A5: № р-ры | B5: Наименование блюда | C5: Выход (гр) | D5: б | E5: ж | F5: у | G5: Ккал | H5: Цена (руб)
A6: Завтрак (ОВЗ)
A7: 101 | B7: Огурец свежий | C7: 60 | D7: 0.66 | E7: 0 | F7: 2.52 | G7: 12 | H7: 28
A8: 390 | B8: Котлета рыбная любительская | C8: 100 | D8: 12 | E8: 8 | F8: 25 | G8: =(F8*4)+(E8*9)+(D8*4) -> 220 | H8: 69
A9: 512 | B9: Рис припущенный | C9: 180 | D9: 4.45 | E9: 5.52 | F9: 48.75 | G9: 250.61 | H9: 17
A10: 702 | B10: Напиток из смеси ягод/ вар | C10: 200 | D10: 0.2 | E10: 0 | F10: 193.92 | G10: 114.69 | H10: 6
B11: Хлеб пшеничный | C11: 31 | D11: 2.3 | E11: 0.2 | F11: 15 | G11: =(F11*4)+(E11*9)+(D11*4) -> 71 | H11: 3
B12: Хлеб ржаной | C12: 25 | D12: 1.6 | E12: 1 | F12: 9.6 | G12: 54 | H12: 3
B13: Фрукты | C13: 100 | D13: 0.4 | E13: 0.4 | F13: 9.8 | G13: =(F13*4)+(E13*9)+(D13*4) -> 44.4
C14: =SUM(C7:C13) -> 696 | D14: 21.61 | E14: 15.12 | F14: 304.59 | G14: 766.7 | H14: 126
A15: 101/04 | B15: Икра кабачковая | C15: 60 | D15: 1.2 | E15: 5.4 | F15: 5.12 | G15: =(F15*4)+(E15*9)+(D15*4) -> 73.88 | H15: 16 | K15: 6
A16: 142 | B16: Суп картофельный с рыбн. консервами | C16: 250/12,5 | D16: 5 | E16: 5.9 | F16: 23.7 | G16: 159.5 | H16: 21
A17: 439/04 | B17: Печень тушёная в соусе | C17: 100 | D17: 13.82 | E17: 8.97 | F17: 5.22 | G17: 170.29 | H17: 54
A18: 472 | B18: Картофельное пюре | C18: 180 | D18: 4 | E18: 6.67 | F18: 31.73 | G18: 189.58 | H18: 32
A19: 685 | B19: Чай с сахаром | C19: 200 | D19: 0.2 | E19: 0.05 | F19: 15.04 | G19: =(F19*4)+(E19*9)+(D19*4) -> 61.41 | H19: 3
B20: Хлеб пшеничный | C20: 31 | D20: 2.3 | E20: 0.2 | F20: 15 | G20: =(F20*4)+(E20*9)+(D20*4) -> 71 | H20: 3
B21: Хлеб ржаной | C21: 25 | D21: 1.6 | E21: 1 | F21: 9.6 | G21: 54 | H21: 3
B22: йогурт | C22: 180 | D22: 2.9 | E22: 2.5 | F22: 11 | G22: =(F22*4)+(E22*9)+(D22*4) -> 78.1
C23: =SUM(C15:C22) -> 776 | D23: 31.02 | E23: 30.64 | F23: 116.41 | G23: 857.75 | H23: 132
B24: Итого | C24: =C14+C23 -> 1472 | D24: =D14+D23 -> 53 | E24: =E14+E23 -> 46 | F24: =F23+F14 -> 421 | G24: =G23+G14 -> 1624 | H24: =H14+H23 -> 258
B25: Зав. производством ООО"Юнрос"_____________________________
B26: _____________________________________________________________
